fUST/lending_fUST_20250720
["ID","MTS","AMOUNT","RATE_DAILY","PERIOD"]
[373420203,1752996633124,-460.0,0.0001725,2]
[373420205,1752996633134,-460.0,0.0001725,2]
[373420207,1752996633144,-460.0,0.0001725,2]
[373420210,1752996633154,-460.0,0.0001725,2]
[373420212,1752996633164,-460.0,0.0001725,2]
[373420214,1752996633173,-460.0,0.0001725,2]
[373420216,1752996633183,-462.97887029,0.0001725,2]
[373420217,1752996633192,-460.0,0.0001725,2]
[373420220,1752996633203,-209.83509399,0.0001725,2]
[373420222,1752996633212,-460.0,0.0001725,2]
[373420224,1752996633221,-460.0,0.0001725,2]
[373420226,1752996633231,-539.76874231,0.0001725,2]
[373420228,1752996633241,-460.0,0.0001725,2]
[373420230,1752996633250,-460.0,0.0001725,2]
[373420232,1752996633261,-215.57573188,0.0001725,2]
[373420234,1752996633270,-460.0,0.0001725,2]
[373420236,1752996633280,-600.0,0.0001725,2]
[373420237,1752996633291,-460.0,0.0001725,2]
[373420240,1752996633301,-460.0,0.0001725,2]
[373420242,1752996633310,-460.0,0.0001725,2]
[373420244,1752996633320,-460.0,0.0001725,2]
[373420246,1752996633330,-460.0,0.0001725,2]
[373420247,1752996633342,-460.0,0.0001725,2]
[373420249,1752996633352,-460.0,0.0001725,2]
[373420251,1752996633361,-460.0,0.0001725,2]
[373420253,1752996633371,-460.0,0.0001725,2]
[373420256,1752996633381,-460.0,0.0001725,2]
[373420257,1752996633390,-460.0,0.0001725,2]
[373420259,1752996633403,-460.0,0.0001725,2]
[373420262,1752996633415,-466.73409255,0.0001725,2]
[373420263,1752996633425,-460.0,0.0001725,2]
[373420265,1752996633435,-460.0,0.0001725,2]
[373420267,1752996633446,-460.0,0.0001725,2]
[373420269,1752996633456,-460.0,0.0001725,2]
[373420271,1752996633464,-460.0,0.0001725,2]
[373420273,1752996633474,-460.0,0.0001725,2]
[373420275,1752996633483,-460.0,0.0001725,2]
[373420276,1752996633493,-460.0,0.0001725,2]
[373420277,1752996633502,-460.0,0.0001725,2]
[373420278,1752996633511,-460.0,0.0001725,2]
[373420279,1752996633521,-460.0,0.0001725,2]
[373420280,1752996633530,-460.0,0.00017251,2]
[373420281,1752996633539,-245.85112974,0.00017251,2]
[373420282,1752996633549,-460.0,0.00017251,2]
[373420283,1752996633558,-460.0,0.00017251,2]
[373420285,1752996633569,-460.0,0.00017251,2]
[373420287,1752996633578,-460.0,0.00017251,2]
[373420289,1752996633588,-460.0,0.00017251,2]
[373420291,1752996633597,-460.0,0.00017251,2]
[373420292,1752996633606,-460.0,0.00017251,2]
[373420293,1752996633616,-456.23242132,0.00017251,2]
[373420294,1752996633625,-460.0,0.00017251,2]
[373420296,1752996633635,-462.86513776,0.00017251,2]
[373420298,1752996633645,-460.0,0.00017251,2]
[373420301,1752996633655,-460.0,0.00017251,2]
[373420302,1752996633664,-460.0,0.00017251,2]
[373420304,1752996633674,-460.0,0.00017251,2]
[373420307,1752996633684,-460.0,0.00017251,2]
[373420308,1752996633693,-843.91,0.00017251,2]
[373420310,1752996633703,-460.0,0.00017251,2]
[373420313,1752996633712,-460.0,0.00017251,2]
[373420315,1752996633722,-460.0,0.00017251,2]
[373420317,1752996633731,-460.0,0.00017251,2]
[373420319,1752996633741,-460.0,0.00017251,2]
[373420321,1752996633750,-460.0,0.00017251,2]
[373420323,1752996633760,-460.0,0.00017251,2]
[373420325,1752996633770,-460.0,0.00017251,2]
[373420327,1752996633779,-460.0,0.00017251,2]
[373420329,1752996633789,-40.97228903,0.00017251,2]
[373420455,1752996639160,-460.0,0.0001725,2]
[373420456,1752996639169,-419.02771097,0.00017251,2]
[373420457,1752996639178,-460.0,0.00017251,2]
[373420458,1752996639188,-460.0,0.00017251,2]
[373420459,1752996639198,-460.0,0.00017251,2]
[373420460,1752996639207,-460.0,0.00017251,2]
[373420461,1752996639217,-500.0,0.00017251,2]
[373420462,1752996639226,-460.0,0.00017251,2]
[373420463,1752996639236,-460.0,0.00017251,2]
[373420464,1752996639245,-460.0,0.00017251,2]
[373420465,1752996639254,-460.66391108,0.00017251,2]
[373420466,1752996639263,-460.0,0.00017251,2]
[373420467,1752996639273,-460.0,0.00017251,2]
[373420468,1752996639282,-460.0,0.00017251,2]
[373420469,1752996639291,-460.0,0.00017251,2]
[373420470,1752996639302,-460.0,0.00017251,2]
[373420471,1752996639311,-460.0,0.00017251,2]
[373420472,1752996639321,-460.0,0.00017251,2]
[373420473,1752996639331,-460.0,0.00017251,2]
[373420474,1752996639340,-460.0,0.00017251,2]
[373420475,1752996639349,-460.0,0.00017252,2]
[373420476,1752996639358,-460.0,0.00017252,2]
[373420477,1752996639368,-460.0,0.00017252,2]
[373420478,1752996639377,-460.0,0.00017252,2]
[373420479,1752996639387,-460.0,0.00017252,2]
[373420480,1752996639398,-620.79,0.00017252,2]
[373420481,1752996639408,-460.0,0.00017253,2]
[373420482,1752996639418,-460.0,0.00017253,2]
[373420483,1752996639427,-978.49,0.00017253,2]
[373420484,1752996639436,-460.0,0.00017253,2]
[373420485,1752996639446,-316.42,0.00017523,2]
[373420486,1752996639455,-460.0,0.00017523,2]
[373420487,1752996639464,-747.45970486,0.00017523,2]
[373420488,1752996639478,-4.36029514,0.00017523,2]
[373420489,1752996639488,-334.15614441,0.00017523,2]
[373420490,1752996639498,-460.0,0.00017524,2]
[373420491,1752996639507,-460.0,0.00017524,2]
[373420492,1752996639517,-298.7,0.00017524,2]
[373420493,1752996639527,-405.02661213,0.00017524,2]
[373420494,1752996639539,-54.97338787,0.00017524,2]
[373420495,1752996639548,-460.0,0.00017524,2]
[373420496,1752996639558,-460.0,0.00017524,2]
[373420497,1752996639567,-460.0,0.00017524,2]
[373420498,1752996639576,-364.57249854,0.00017524,2]
[373420499,1752996639588,-95.42750146,0.00017524,2]
[373420500,1752996639597,-460.0,0.00017524,2]
[373420501,1752996639606,-460.0,0.00017524,2]
[373420502,1752996639615,-460.0,0.00017524,2]
[373420503,1752996639626,-460.0,0.00017524,2]
[373420504,1752996639635,-460.0,0.00017524,2]
[373420505,1752996639643,-460.0,0.00017524,2]
[373420506,1752996639653,-460.0,0.00017524,2]
[373420507,1752996639662,-460.0,0.00017524,2]
[373420508,1752996639672,-460.0,0.00017524,2]
[373420509,1752996639681,-460.0,0.00017524,2]
[373420510,1752996639690,-460.0,0.00017524,2]
[373420511,1752996639699,-460.0,0.00017524,2]
[373420512,1752996639708,-460.0,0.00017524,2]
[373420513,1752996639719,-460.0,0.00017524,2]
[373420514,1752996639728,-460.0,0.00017524,2]
[373420515,1752996639738,-530.14322008,0.00017524,2]
[373420516,1752996639749,-460.0,0.00017524,2]
[373420517,1752996639759,-460.0,0.00017524,2]
[373420518,1752996639769,-460.0,0.00017524,2]
[373420519,1752996639778,-460.0,0.00017524,2]
[373420520,1752996639788,-460.0,0.00017524,2]
[373420521,1752996639798,-460.0,0.00017525,2]
[373420522,1752996639807,-460.0,0.00017525,2]
[373420523,1752996639816,-843.91,0.00017525,2]
[373420524,1752996639825,-460.0,0.00017525,2]
[373420525,1752996639835,-460.0,0.00017525,2]
[373420526,1752996639844,-460.0,0.00017525,2]
[373420527,1752996639853,-262.99,0.00017525,2]
[373420528,1752996639863,-460.0,0.00017525,2]
[373420529,1752996639872,-460.0,0.00017525,2]
[373420530,1752996639882,-460.0,0.00017525,2]
[373420531,1752996639891,-460.0,0.00017525,2]
[373420532,1752996639901,-460.0,0.00017525,2]
[373420533,1752996639911,-460.0,0.00017526,2]
[373420534,1752996639920,-460.0,0.00017526,2]
[373420535,1752996639930,-460.0,0.00017526,2]
[373420536,1752996639939,-460.0,0.00017526,2]
[373420537,1752996639949,-460.0,0.00017526,2]
[373420538,1752996639958,-460.0,0.00017526,2]
[373420539,1752996639967,-460.0,0.00017526,2]
[373420540,1752996639978,-620.79,0.00017526,2]
[373420541,1752996639988,-460.0,0.00017527,2]
[373420542,1752996639998,-978.49,0.00017527,2]
[373420543,1752996640007,-460.0,0.00017527,2]
[373420544,1752996640017,-460.0,0.00017797,2]
[373420545,1752996640026,-751.82,0.00017797,2]
[373420546,1752996640036,-460.0,0.00017798,2]
[373420547,1752996640045,-460.0,0.00017798,2]
[373420548,1752996640055,-460.0,0.00017798,2]
[373420549,1752996640064,-460.0,0.00017798,2]
[373420550,1752996640074,-331.47,0.00017798,2]
[373420551,1752996640083,-460.0,0.00017798,2]
[373420552,1752996640093,-344.73,0.00017798,2]
[373420553,1752996640102,-218.62,0.00017798,2]
[373420554,1752996640112,-460.0,0.00017798,2]
[373420555,1752996640122,-460.0,0.00017798,2]
[373420556,1752996640132,-173.99,0.00017798,2]
[373420557,1752996640141,-460.0,0.00017798,2]
[373420558,1752996640150,-460.0,0.00017798,2]
[373420559,1752996640160,-460.0,0.00017798,2]
[373420560,1752996640171,-460.0,0.00017799,2]
[373420561,1752996640181,-427.20373491,0.00017799,2]
[373420562,1752996640190,-843.91,0.00017799,2]
[373420563,1752996640199,-460.0,0.00017799,2]
[373420564,1752996640209,-460.0,0.00017799,2]
[373420565,1752996640218,-460.0,0.00017799,2]
[373420566,1752996640227,-460.0,0.00017799,2]
[373420568,1752996640237,-460.0,0.00017799,2]
[373420570,1752996640246,-460.0,0.00017799,2]
[373420572,1752996640255,-460.0,0.00017799,2]
[373420574,1752996640264,-460.0,0.000178,2]
[373420576,1752996640273,-460.0,0.000178,2]
[373420577,1752996640283,-460.0,0.000178,2]
[373420579,1752996640293,-460.0,0.000178,2]
[373420581,1752996640303,-460.0,0.000178,2]
[373420582,1752996640312,-460.0,0.000178,2]
[373420583,1752996640321,-620.79,0.000178,2]
[373420584,1752996640330,-460.0,0.00017801,2]
[373420585,1752996640339,-978.49,0.00017801,2]
[373420586,1752996640348,-460.0,0.00017801,2]
[373420587,1752996640357,-460.0,0.00018071,2]
[373420588,1752996640366,-751.82,0.00018071,2]
[373420589,1752996640375,-460.0,0.00018072,2]
[373420590,1752996640384,-572.02,0.00018072,2]
[373420591,1752996640393,-460.0,0.00018072,2]
[373420592,1752996640406,-460.0,0.00018072,2]
[373420593,1752996640415,-460.0,0.00018072,2]
[373420594,1752996640425,-551.8,0.00018072,2]
[373420595,1752996640434,-460.0,0.00018072,2]
[373420596,1752996640444,-460.0,0.00018072,2]
[373420597,1752996640453,-460.0,0.00018072,2]
[373420598,1752996640462,-460.0,0.00018072,2]
[373420599,1752996640471,-460.0,0.00018073,2]
[373420600,1752996640480,-843.91,0.00018073,2]
[373420601,1752996640490,-460.0,0.00018073,2]
[373420602,1752996640500,-166.71361375,0.00018073,2]
[373420603,1752996640512,-293.28638625,0.00018073,2]
[373420604,1752996640522,-347.72218959,0.00018073,2]
[373420605,1752996640533,-112.27781041,0.00018073,2]
[373420606,1752996640543,-460.0,0.00018073,2]
[373420607,1752996640553,-460.0,0.00018073,2]
[373420608,1752996640562,-460.0,0.00018073,2]
[373420609,1752996640573,-460.0,0.00018073,2]
[373420610,1752996640583,-460.0,0.00018074,2]
[373420611,1752996640593,-460.0,0.00018074,2]
[373420612,1752996640602,-460.0,0.00018074,2]
[373420613,1752996640612,-460.0,0.00018074,2]
[373420614,1752996640622,-460.0,0.00018074,2]
[373420615,1752996640632,-460.0,0.00018074,2]
[373420616,1752996640642,-460.0,0.00018075,2]
[373420617,1752996640651,-978.49,0.00018075,2]
[373420618,1752996640660,-460.0,0.00018075,2]
[373420619,1752996640669,-429.4514592,0.000181,2]
[373420620,1752996640679,-429.4514592,0.000181,2]
[373420622,1752996640688,-108.2621931,0.000181,2]
[373420623,1752996640699,-321.1892661,0.000181,2]
[373420624,1752996640710,-611.8082325,0.000181,2]
[373420625,1752996640719,-223.94615338,0.00018311,2]
[373420626,1752996640728,-460.0,0.00018345,2]
[373420627,1752996640739,-751.82,0.00018345,2]
[373420628,1752996640750,-283.3040134,0.00018346,2]
[373420629,1752996640760,-460.0,0.00018346,2]
[373420630,1752996640771,-460.0,0.00018346,2]
[373420631,1752996640780,-305.57782554,0.00018346,2]
[373420633,1752996640792,-154.42217446,0.00018346,2]
[373420635,1752996640802,-460.0,0.00018346,2]
[373420637,1752996640814,-460.0,0.00018346,2]
[373420639,1752996640824,-460.0,0.00018346,2]
[373420640,1752996640833,-460.0,0.00018346,2]
[373420641,1752996640843,-460.0,0.00018347,2]
[373420642,1752996640852,-843.91,0.00018347,2]
[373420643,1752996640861,-460.0,0.00018347,2]
[373420644,1752996640870,-460.0,0.00018347,2]
[373420645,1752996640880,-460.0,0.00018347,2]
[373420646,1752996640889,-460.0,0.00018347,2]
[373420647,1752996640898,-460.0,0.00018347,2]
[373420648,1752996640907,-460.0,0.00018347,2]
[373420649,1752996640916,-32.38576713,0.00018347,2]
[373420650,1752996640971,-441.76366054,0.00017524,2]
[373420651,1752996640981,-620.79,0.00018074,2]
[373420652,1752996640990,-427.61423287,0.00018347,2]
[373420653,1752996640999,-460.0,0.00018348,2]
[373420654,1752996641008,-460.0,0.00018348,2]
[373420655,1752996641017,-460.0,0.00018348,2]
[373420656,1752996641026,-301.68,0.00018348,2]
[373420657,1752996641036,-460.0,0.00018348,2]
[373420658,1752996641046,-460.0,0.00018348,2]
[373420659,1752996641056,-620.79,0.00018348,2]
[373420660,1752996641066,-460.0,0.00018349,2]
[373420661,1752996641075,-978.49,0.00018349,2]
[373420662,1752996641084,-460.0,0.00018349,2]
[373420663,1752996641094,-151.0,0.00018356,2]
[373420664,1752996641104,-460.0,0.00018619,2]
[373420665,1752996641113,-119.67210659,0.00018619,2]
[373420666,1752996641125,-632.14789341,0.00018619,2]
[373420667,1752996641134,-460.0,0.0001862,2]
[373420668,1752996641143,-474.69,0.0001862,2]
[373420669,1752996641153,-460.0,0.0001862,2]
[373420670,1752996641163,-460.0,0.0001862,2]
[373420671,1752996641172,-460.0,0.0001862,2]
[373420672,1752996641182,-460.0,0.0001862,2]
[373420673,1752996641191,-460.0,0.0001862,2]
[373420674,1752996641201,-460.0,0.00018621,2]
[373420675,1752996641210,-843.91,0.00018621,2]
[373420676,1752996641219,-460.0,0.00018621,2]
[373420677,1752996641232,-587.18,0.00018621,2]
[373420678,1752996641242,-460.0,0.00018621,2]
[373420679,1752996641251,-460.0,0.00018621,2]
[373420680,1752996641261,-460.0,0.00018621,2]
[373420681,1752996641271,-460.0,0.00018621,2]
[373420682,1752996641280,-460.0,0.00018622,2]
[373420683,1752996641290,-460.0,0.00018622,2]
[373420684,1752996641301,-460.0,0.00018622,2]
[373420685,1752996641311,-460.0,0.00018622,2]
[373420686,1752996641320,-602.7530223,0.00018622,2]
[373420687,1752996641332,-18.0369777,0.00018622,2]
[373420688,1752996641342,-460.0,0.00018623,2]
[373420689,1752996641352,-978.49,0.00018623,2]
[373420690,1752996641362,-460.0,0.00018623,2]
[373420691,1752996641371,-10.68248367,0.00018834,2]
[373420692,1752996641383,-409.31751633,0.00018834,2]
[373420693,1752996641392,-246.02,0.00018885,3]
[373420694,1752996641407,-738.11,0.00018885,3]
[373420695,1752996641416,-460.0,0.00018893,2]
[373420696,1752996641425,-469.65417893,0.00018893,2]
[373420697,1752996641436,-282.16582107,0.00018893,2]
[373420698,1752996641447,-460.0,0.00018894,2]
[373420699,1752996641457,-460.0,0.00018894,2]
[373420700,1752996641466,-460.0,0.00018894,2]
[373420701,1752996641478,-460.0,0.00018894,2]
[373420702,1752996641488,-316.2860777,0.00018894,2]
[373420703,1752996641499,-143.7139223,0.00018894,2]
[373420704,1752996641509,-460.0,0.00018894,2]
[373420705,1752996641518,-460.0,0.00018895,2]
[373420706,1752996641527,-16.35505734,0.00018895,2]
[373420707,1752996641539,-827.55494266,0.00018895,2]
[373420708,1752996641548,-308.66,0.00018895,2]
[373420709,1752996641557,-460.0,0.00018895,2]
[373420710,1752996641566,-233.08505734,0.00018895,2]
[373420791,1752996644230,-226.91494266,0.00018895,2]
[373420792,1752996644240,-460.0,0.00018895,2]
[373420793,1752996644249,-175.90197964,0.00018896,2]
[373420794,1752996644259,-460.0,0.00018896,2]
[373420795,1752996644268,-460.0,0.00018896,2]
[373420796,1752996644278,-620.79,0.00018896,2]
[373420797,1752996644287,-460.0,0.00018897,2]
[373420798,1752996644296,-978.49,0.00018897,2]
[373420799,1752996644306,-460.0,0.00018897,2]
[373420800,1752996644316,-1350.65232874,0.000189,2]
[373420801,1752996644325,-1205.74276121,0.000189,2]
[373420802,1752996644337,-214.5637056,0.0001907,2]
[373420803,1752996644346,-160.0,0.0001907,2]
[373420804,1752996644356,-12615.16111038,0.0001907,2]
[373420805,1752996644366,-525.91036056,0.0001907,2]
[373420806,1752996644375,-160.0,0.0001907,2]
[373420807,1752996644384,-160.0,0.0001907,2]
[373420808,1752996644393,-160.0,0.0001907,2]
[373420809,1752996644407,-160.0,0.0001907,2]
[373420810,1752996644416,-839.59621281,0.0001907,2]
[373420811,1752996644425,-215.71456056,0.0001907,2]
[373420812,1752996644435,-230.98123516,0.0001907,2]
[373420813,1752996644444,-160.0,0.0001907,2]
[373420814,1752996644452,-160.0,0.0001907,2]
[373420815,1752996644461,-476.42619115,0.0001907,2]
[373420816,1752996644470,-1350.65232861,0.00019141,2]
[373420817,1752996644479,-460.0,0.00019167,2]
[373420818,1752996644488,-751.82,0.00019167,2]
[373420819,1752996644497,-261.99908292,0.00019168,2]
[373420830,1752996646623,-198.00091708,0.00019168,2]
[373420831,1752996646633,-460.0,0.00019168,2]
[373420832,1752996646644,-304.32792919,0.00019168,2]
[373420833,1752996646656,-460.0,0.00019168,2]
[373420834,1752996646666,-460.0,0.00019168,2]
[373420835,1752996646675,-460.0,0.00019168,2]
[373420836,1752996646685,-460.0,0.00019169,2]
[373420837,1752996646694,-843.91,0.00019169,2]
[373420838,1752996646703,-122.94021801,0.00019169,2]
[373420839,1752996646714,-337.05978199,0.00019169,2]
[373420840,1752996646723,-460.0,0.00019169,2]
[373420841,1752996646733,-460.0,0.00019169,2]
[373420842,1752996646743,-460.0,0.0001917,2]
[373420843,1752996646752,-460.0,0.0001917,2]
[373420844,1752996646760,-620.79,0.0001917,2]
[373420845,1752996646769,-460.0,0.00019171,2]
[373420846,1752996646779,-978.49,0.00019171,2]
[373420847,1752996646788,-460.0,0.00019171,2]
[373420848,1752996646800,-632.1316733,0.00019178,2]
[373420849,1752996646813,-666.0,0.00019178,2]
[373420850,1752996646825,-180.005217,0.00019178,2]
[373420851,1752996646837,-20414.35721455,0.00019329,2]
[373420852,1752996646853,-368.65206835,0.00019329,2]
[373420853,1752996646870,-258.0030354,0.00019329,2]
[373420854,1752996646950,-691.80252404,0.00019329,2]
[373420857,1752996805088,160.02552,0.00013699,2]
[373421040,1752997619225,-176.24377408,0.00017148,2]
[373421126,1752997832642,-324.24879281,0.00017151,2]
[373421129,1752997832654,-1816.07317128,0.00017151,2]
[373421131,1752997832663,-338.67,0.00017239,3]
[373421132,1752997832672,-169.33,0.00017239,3]
[373421134,1752997832682,-362.82351424,0.00017239,3]
[373421145,1752997832768,-145.19648576,0.00017239,3]
[373421147,1752997832778,-300.0,0.00017245,2]
[373421149,1752997832790,-172.0,0.00017245,2]
[373421151,1752997832801,-1200.0,0.00017245,2]
[373421153,1752997832810,-1200.0,0.00017246,2]
[373421155,1752997832819,-462.02482458,0.00017246,2]
[373421157,1752997832829,-460.97292052,0.00017246,2]
[373421158,1752997832838,-299.7709777,0.00017246,2]
[373421159,1752997832847,-460.0,0.00017246,2]
[373421160,1752997832856,-460.0,0.00017247,2]
[373421161,1752997832866,-460.0,0.00017247,2]
[373421162,1752997832876,-460.0,0.00017247,2]
[373421163,1752997832884,-460.0,0.00017247,2]
[373421164,1752997832893,-460.0,0.00017247,2]
[373421165,1752997832903,-460.73606232,0.00017247,2]
[373421166,1752997832911,-460.0,0.00017247,2]
[373421167,1752997832920,-303.77438201,0.00017247,2]
[373421168,1752997832929,-460.0,0.00017247,2]
[373421169,1752997832938,-460.0,0.00017247,2]
[373421170,1752997832947,-585.48404139,0.00017247,2]
[373421171,1752997832956,-460.0,0.00017247,2]
[373421172,1752997832966,-460.0,0.00017247,2]
[373421173,1752997832975,-460.0,0.00017247,2]
[373421174,1752997832984,-460.0,0.00017247,2]
[373421175,1752997832994,-460.0,0.00017247,2]
[373421176,1752997833003,-460.0,0.00017247,2]
[373421177,1752997833011,-460.0,0.00017247,2]
[373421179,1752997833021,-460.0,0.00017247,2]
[373421180,1752997833031,-460.0,0.00017247,2]
[373421181,1752997833040,-460.0,0.00017247,2]
[373421182,1752997833051,-460.51233733,0.00017247,2]
[373421183,1752997833062,-152.39004749,0.00017247,2]
[373421184,1752997833071,-460.0,0.00017247,2]
[373421185,1752997833080,-260.0,0.00017247,2]
[373421187,1752997833089,-460.0,0.00017247,2]
[373421189,1752997833098,-378.11048123,0.00017247,2]
[373421191,1752997833108,-460.0,0.00017247,2]
[373421193,1752997833118,-460.0,0.00017247,2]
[373421195,1752997833128,-460.0,0.00017247,2]
[373421197,1752997833137,-460.0,0.00017247,2]
[373421199,1752997833147,-460.0,0.00017247,2]
[373421201,1752997833157,-460.0,0.00017247,2]
[373421203,1752997833166,-460.0,0.00017247,2]
[373421205,1752997833175,-460.0,0.00017247,2]
[373421207,1752997833185,-460.0,0.00017247,2]
[373421209,1752997833195,-606.64381236,0.00017247,2]
[373421211,1752997833204,-460.0,0.00017247,2]
[373421213,1752997833213,-460.0,0.00017247,2]
[373421215,1752997833223,-460.0,0.00017247,2]
[373421217,1752997833233,-460.0,0.00017247,2]
[373421219,1752997833242,-1996.24,0.00017247,2]
[373421221,1752997833252,-460.0,0.00017247,2]
[373421223,1752997833262,-460.0,0.00017247,2]
[373421225,1752997833271,-460.0,0.00017247,2]
[373421227,1752997833281,-597.5,0.00017247,2]
[373421229,1752997833291,-460.0,0.00017247,2]
[373421231,1752997833300,-460.0,0.00017247,2]
[373421233,1752997833309,-460.0,0.00017247,2]
[373421235,1752997833319,-460.0,0.00017247,2]
[373421237,1752997833328,-460.0,0.00017247,2]
[373421239,1752997833337,-460.0,0.00017247,2]
[373421241,1752997833346,-460.0,0.00017247,2]
[373421242,1752997833355,-460.0,0.00017247,2]
[373421243,1752997833364,-460.0,0.00017247,2]
[373421244,1752997833374,-460.0,0.00017247,2]
[373421247,1752997833384,-460.0,0.00017247,2]
[373421249,1752997833394,-460.0,0.00017247,2]
[373421251,1752997833404,-460.0,0.00017247,2]
[373421253,1752997833414,-499.14,0.00017247,2]
[373421255,1752997833424,-460.0,0.00017247,2]
[373421257,1752997833434,-1697.1,0.00017247,2]
[373421259,1752997833444,-460.0,0.00017247,2]
[373421261,1752997833454,-486.945714,0.00017247,2]
[373421263,1752997833463,-460.0,0.00017247,2]
[373421265,1752997833473,-541.81464802,0.00017247,2]
[373421267,1752997833482,-460.0,0.00017247,2]
[373421269,1752997833492,-460.0,0.00017247,2]
[373421271,1752997833501,-460.0,0.00017247,2]
[373421273,1752997833511,-499.13555787,0.00017247,2]
[373421275,1752997833521,-460.0,0.00017247,2]
[373421277,1752997833531,-460.0,0.00017247,2]
[373421279,1752997833541,-460.0,0.00017247,2]
[373421281,1752997833551,-460.54417546,0.00017247,2]
[373421283,1752997833561,-460.0,0.00017247,2]
[373421285,1752997833571,-460.0,0.00017247,2]
[373421287,1752997833581,-460.0,0.00017247,2]
[373421289,1752997833591,-460.0,0.00017247,2]
[373421291,1752997833601,-460.0,0.00017247,2]
[373421293,1752997833610,-836.02,0.00017247,2]
[373421295,1752997833620,-460.0,0.00017247,2]
[373421297,1752997833630,-460.0,0.00017247,2]
[373421299,1752997833640,-460.0,0.00017247,2]
[373421301,1752997833650,-460.0,0.00017247,2]
[373421303,1752997833659,-460.0,0.00017247,2]
[373421305,1752997833668,-460.0,0.00017247,2]
[373421307,1752997833678,-460.0,0.00017247,2]
[373421309,1752997833687,-460.0,0.00017247,2]
[373421311,1752997833696,-460.0,0.00017247,2]
[373421313,1752997833705,-460.0,0.00017247,2]
[373421315,1752997833715,-460.0,0.00017247,2]
[373421317,1752997833724,-460.0,0.00017247,2]
[373421319,1752997833734,-460.0,0.00017247,2]
[373421321,1752997833743,-460.0,0.00017247,2]
[373421323,1752997833752,-1367.43,0.00017247,2]
[373421324,1752997833761,-460.0,0.00017247,2]
[373421325,1752997833770,-460.0,0.00017247,2]
[373421326,1752997833780,-460.0,0.00017247,2]
[373421327,1752997833791,-460.0,0.00017247,2]
[373421328,1752997833801,-460.0,0.00017247,2]
[373421330,1752997833810,-460.0,0.00017247,2]
[373421344,1752997833932,-460.0,0.00017247,2]
[373421346,1752997833943,-460.42166625,0.00017247,2]
[373421348,1752997833952,-460.0,0.00017247,2]
[373421350,1752997833962,-460.0,0.00017247,2]
[373421352,1752997833971,-460.0,0.00017247,2]
[373421354,1752997833980,-460.0,0.00017247,2]
[373421356,1752997833990,-460.0,0.00017247,2]
[373421358,1752997833999,-460.0,0.00017247,2]
[373421360,1752997834010,-460.0,0.00017247,2]
[373421362,1752997834019,-502.86,0.00017247,2]
[373421364,1752997834029,-460.0,0.00017247,2]
[373421366,1752997834038,-460.0,0.00017247,2]
[373421368,1752997834048,-460.0,0.00017247,2]
[373421370,1752997834057,-460.0,0.00017247,2]
[373421372,1752997834067,-500.0,0.00017248,2]
[373421374,1752997834076,-460.0,0.00017248,2]